[Event "Early-Titled-Tuesday-Blitz-September-12-2023"]
[Site "Chess.com"]
[Date "2023.09.12"]
[Round "8"]
[White "JiaHaoxiang"]
[Black "Byniolus"]
[Result "0-1"]
[WhiteElo "2597"]
[BlackElo "2797"]
[TimeControl "180+1"]
[EndTime "9:30:56 PDT"]
[Termination "Byniolus won on time"]

1. d4 {[%clk 0:03:00.9]} 1... d6 {[%clk 0:02:56.3]} 2. Nf3 {[%clk 0:03:00.5]}
2... Bg4 {[%clk 0:02:56.1]} 3. Nbd2 {[%clk 0:02:45.7]} 3... Nf6 {[%clk
0:02:55.8]} 4. h3 {[%clk 0:02:44.6]} 4... Bh5 {[%clk 0:02:56]} 5. g4 {[%clk
0:02:44.5]} 5... Bg6 {[%clk 0:02:56.5]} 6. Bg2 {[%clk 0:02:45.2]} 6... c6 {[%clk
0:02:57.1]} 7. Nh4 {[%clk 0:02:42.9]} 7... e6 {[%clk 0:02:57.6]} 8. Nxg6 {[%clk
0:02:43]} 8... hxg6 {[%clk 0:02:58.4]} 9. c3 {[%clk 0:02:41.7]} 9... d5 {[%clk
0:02:58]} 10. Qb3 {[%clk 0:02:39]} 10... Qb6 {[%clk 0:02:56.9]} 11. Nf1 {[%clk
0:02:38.1]} 11... Bd6 {[%clk 0:02:55.5]} 12. Bg5 {[%clk 0:02:33.1]} 12... Nbd7
{[%clk 0:02:54.8]} 13. O-O-O {[%clk 0:02:32.8]} 13... Qc7 {[%clk 0:02:45.2]} 14.
Kb1 {[%clk 0:02:31.5]} 14... O-O-O {[%clk 0:02:43.3]} 15. Nd2 {[%clk 0:02:28.8]}
15... Bf4 {[%clk 0:02:42.1]} 16. Bxf6 {[%clk 0:02:28.5]} 16... gxf6 {[%clk
0:02:41.8]} 17. e3 {[%clk 0:02:28.9]} 17... Bd6 {[%clk 0:02:38.9]} 18. c4 {[%clk
0:02:28.7]} 18... Kb8 {[%clk 0:02:36.8]} 19. Rc1 {[%clk 0:02:27.5]} 19... Qb6
{[%clk 0:02:31.9]} 20. Qd3 {[%clk 0:01:46.5]} 20... Be7 {[%clk 0:02:24]} 21. Rc3
{[%clk 0:01:45.9]} 21... f5 {[%clk 0:02:13]} 22. cxd5 {[%clk 0:01:30.1]} 22...
cxd5 {[%clk 0:02:08.7]} 23. Rhc1 {[%clk 0:01:10.2]} 23... Rc8 {[%clk 0:02:06.3]}
24. gxf5 {[%clk 0:01:03.4]} 24... gxf5 {[%clk 0:02:04.4]} 25. Rxc8+ {[%clk
0:01:03.5]} 25... Rxc8 {[%clk 0:02:05.3]} 26. Rxc8+ {[%clk 0:01:04]} 26... Kxc8
{[%clk 0:02:06.2]} 27. Nf3 {[%clk 0:01:03.6]} 27... Qc7 {[%clk 0:01:55.7]} 28.
Bf1 {[%clk 0:01:00.9]} 28... Bf6 {[%clk 0:01:42.2]} 29. Be2 {[%clk 0:00:49.7]}
29... Kd8 {[%clk 0:01:42.3]} 30. h4 {[%clk 0:00:49.4]} 30... a6 {[%clk 0:01:41]}
31. h5 {[%clk 0:00:49.7]} 31... Ke7 {[%clk 0:01:34.4]} 32. Qa3+ {[%clk
0:00:46.4]} 32... Qd6 {[%clk 0:01:34.3]} 33. Qb3 {[%clk 0:00:46.4]} 33... b5
{[%clk 0:01:32.5]} 34. Qc2 {[%clk 0:00:44.6]} 34... Nb6 {[%clk 0:01:28.3]} 35.
h6 {[%clk 0:00:38.5]} 35... Kf8 {[%clk 0:01:20]} 36. Ne5 {[%clk 0:00:38]} 36...
Kg8 {[%clk 0:01:09]} 37. f4 {[%clk 0:00:38]} 37... Bxe5 {[%clk 0:00:51.8]} 38.
dxe5 {[%clk 0:00:37.6]} 38... Qb4 {[%clk 0:00:52.7]} 39. a3 {[%clk 0:00:29.3]}
39... Qe4 {[%clk 0:00:37.6]} 40. Bd3 {[%clk 0:00:29.5]} 40... Qh1+ {[%clk
0:00:37.9]} 41. Ka2 {[%clk 0:00:30]} 41... Qxh6 {[%clk 0:00:37.9]} 42. Qc6
{[%clk 0:00:30.1]} 42... Nc4 {[%clk 0:00:38.5]} 43. Bxc4 {[%clk 0:00:20.5]}
43... bxc4 {[%clk 0:00:39.4]} 44. Qxa6 {[%clk 0:00:20.6]} 44... Qh2 {[%clk
0:00:38.9]} 45. a4 {[%clk 0:00:16.4]} 45... Qc2 {[%clk 0:00:38]} 46. Qb5 {[%clk
0:00:14.4]} 46... Qd2 {[%clk 0:00:26.4]} 47. a5 {[%clk 0:00:12.7]} 47... Qxe3
{[%clk 0:00:26.2]} 48. a6 {[%clk 0:00:13.3]} 48... Kg7 {[%clk 0:00:25.9]} 49.
Qb7 {[%clk 0:00:12.9]} 49... c3 {[%clk 0:00:25.7]} 50. a7 {[%clk 0:00:09.9]}
50... c2 {[%clk 0:00:23.6]} 51. Qc7 {[%clk 0:00:05]} 51... c1=Q {[%clk
0:00:17.6]} 52. Qxc1 {[%clk 0:00:04.6]} 52... Qxc1 {[%clk 0:00:18.5]} 53. a8=Q
{[%clk 0:00:05.2]} 53... Qc4+ {[%clk 0:00:17.9]} 54. Ka1 {[%clk 0:00:04.1]}
54... Qxf4 {[%clk 0:00:18.8]} 55. Qb8 {[%clk 0:00:04.5]} 55... Qc1+ {[%clk
0:00:17.5]} 56. Ka2 {[%clk 0:00:04.6]} 56... Qc4+ {[%clk 0:00:17.4]} 57. Ka1
{[%clk 0:00:04.7]} 57... Qa4+ {[%clk 0:00:09.4]} 58. Kb1 {[%clk 0:00:04.7]}
58... Qd7 {[%clk 0:00:08.8]} 59. Qb4 {[%clk 0:00:03.7]} 59... d4 {[%clk
0:00:08.9]} 60. Qd2 {[%clk 0:00:01.6]} 60... f6 {[%clk 0:00:07.3]} 61. exf6+
{[%clk 0:00:01.6]} 61... Kxf6 {[%clk 0:00:08.2]} 62. Qh6+ {[%clk 0:00:02.4]}
62... Ke5 {[%clk 0:00:08.4]} 63. Qh2+ {[%clk 0:00:02.7]} 63... Kd5 {[%clk
0:00:08.5]} 64. Qg2+ {[%clk 0:00:03.3]} 64... Kd6 {[%clk 0:00:08]} 65. Qg3+
{[%clk 0:00:03.3]} 65... e5 {[%clk 0:00:08.5]} 66. Qa3+ {[%clk 0:00:02.6]} 66...
Ke6 {[%clk 0:00:08.2]} 67. Qa6+ {[%clk 0:00:02.7]} 67... Qd6 {[%clk 0:00:07.5]}
68. Qc8+ {[%clk 0:00:03.1]} 68... Kf6 {[%clk 0:00:08.1]} 69. Qh8+ {[%clk
0:00:03.4]} 69... Kg5 {[%clk 0:00:07.6]} 70. Qh3 {[%clk 0:00:02.4]} 70... f4
{[%clk 0:00:06.6]} 71. Qg2+ {[%clk 0:00:02.3]} 71... Kf5 {[%clk 0:00:07.3]} 72.
Qh3+ {[%clk 0:00:03]} 72... Kf6 {[%clk 0:00:07.9]} 73. Qh6+ {[%clk 0:00:03.1]}
73... Ke7 {[%clk 0:00:08.8]} 74. Qg7+ {[%clk 0:00:03.6]} 74... Ke6 {[%clk
0:00:09.7]} 75. Qg8+ {[%clk 0:00:04.3]} 75... Kd7 {[%clk 0:00:09.9]} 76. Qf7+
{[%clk 0:00:04]} 76... Kc6 {[%clk 0:00:10.8]} 77. Qc4+ {[%clk 0:00:03.9]} 77...
Kb6 {[%clk 0:00:11.3]} 78. Qb3+ {[%clk 0:00:03.9]} 78... Kc7 {[%clk 0:00:12]}
79. Qc4+ {[%clk 0:00:04.3]} 79... Qc6 {[%clk 0:00:09.6]} 80. Qf7+ {[%clk
0:00:05]} 80... Kb6 {[%clk 0:00:10.1]} 81. Qb3+ {[%clk 0:00:04.7]} 81... Qb5
{[%clk 0:00:07.3]} 82. Qe6+ {[%clk 0:00:05.1]} 82... Ka5 {[%clk 0:00:08.2]} 83.
Qa2+ {[%clk 0:00:04.6]} 83... Kb4 {[%clk 0:00:07.8]} 84. Qa3+ {[%clk 0:00:03]}
84... Kc4 {[%clk 0:00:08.1]} 85. Qa2+ {[%clk 0:00:03.3]} 85... Kd3 {[%clk
0:00:06.6]} 86. Qe6 {[%clk 0:00:02.4]} 86... Ke3 {[%clk 0:00:05.1]} 87. Qh3+
{[%clk 0:00:02.1]} 87... f3 {[%clk 0:00:05.8]} 88. Qh6+ {[%clk 0:00:02.4]} 88...
Ke2 {[%clk 0:00:05.4]} 0-1

[Event "Early-Titled-Tuesday-Blitz-September-12-2023"]
[Site "Chess.com"]
[Date "2023.09.12"]
[Round "8"]
[White "Cambek64"]
[Black "Al_Shima"]
[Result "1/2-1/2"]
[WhiteElo "2492"]
[BlackElo "2339"]
[TimeControl "180+1"]
[EndTime "9:31:59 PDT"]
[Termination "Game drawn - insufficient material"]

1. b3 {[%clk 0:02:58.9]} 1... e5 {[%clk 0:02:57.3]} 2. Bb2 {[%clk 0:02:58.9]}
2... Nc6 {[%clk 0:02:55.8]} 3. e3 {[%clk 0:02:59.4]} 3... Nf6 {[%clk 0:02:54.5]}
4. c4 {[%clk 0:02:59.7]} 4... d5 {[%clk 0:02:50.1]} 5. cxd5 {[%clk 0:02:58.6]}
5... Nxd5 {[%clk 0:02:49.9]} 6. a3 {[%clk 0:02:58.9]} 6... a6 {[%clk 0:02:49.5]}
7. Nc3 {[%clk 0:02:59.1]} 7... Be6 {[%clk 0:02:48.7]} 8. b4 {[%clk 0:02:59.6]}
8... Nxc3 {[%clk 0:02:42.4]} 9. Bxc3 {[%clk 0:02:57.1]} 9... Bd6 {[%clk
0:02:40.5]} 10. Qc2 {[%clk 0:02:57.4]} 10... O-O {[%clk 0:02:39.7]} 11. Bd3
{[%clk 0:02:55.8]} 11... f5 {[%clk 0:02:39.1]} 12. Bb2 {[%clk 0:02:52.6]} 12...
Qg5 {[%clk 0:02:32.1]} 13. Kf1 {[%clk 0:02:51.1]} 13... e4 {[%clk 0:02:22.6]}
14. Bc4 {[%clk 0:02:50.2]} 14... Rae8 {[%clk 0:02:20.7]} 15. h4 {[%clk
0:02:48.7]} 15... Qh6 {[%clk 0:02:14.3]} 16. g3 {[%clk 0:02:43.5]} 16... Ne5
{[%clk 0:02:12.3]} 17. Bxe5 {[%clk 0:02:37]} 17... Bxe5 {[%clk 0:02:13.2]} 18.
Rd1 {[%clk 0:02:36.3]} 18... Bxc4+ {[%clk 0:02:02.1]} 19. Qxc4+ {[%clk
0:02:35.5]} 19... Kh8 {[%clk 0:02:02]} 20. Nh3 {[%clk 0:02:35.4]} 20... Qh5
{[%clk 0:01:57.5]} 21. Qe2 {[%clk 0:02:33.8]} 21... Qxe2+ {[%clk 0:01:49.3]} 22.
Kxe2 {[%clk 0:02:31.3]} 22... Bb2 {[%clk 0:01:49.1]} 23. a4 {[%clk 0:02:28.9]}
23... Rd8 {[%clk 0:01:34.7]} 24. d4 {[%clk 0:02:27.5]} 24... exd3+ {[%clk
0:01:33.7]} 25. Rxd3 {[%clk 0:02:25.1]} 25... Rxd3 {[%clk 0:01:32]} 26. Kxd3
{[%clk 0:02:25]} 26... Rd8+ {[%clk 0:01:31.8]} 27. Kc2 {[%clk 0:02:25.6]} 27...
Be5 {[%clk 0:01:31.1]} 28. Ng5 {[%clk 0:02:09]} 28... Kg8 {[%clk 0:01:30.8]} 29.
Nf3 {[%clk 0:02:04.4]} 29... Bf6 {[%clk 0:01:30.5]} 30. Rd1 {[%clk 0:01:44.5]}
30... Rxd1 {[%clk 0:01:29.5]} 31. Kxd1 {[%clk 0:01:45.2]} 31... Kf7 {[%clk
0:01:30.1]} 32. Kc2 {[%clk 0:01:45.7]} 32... Ke6 {[%clk 0:01:30.2]} 33. Kd3
{[%clk 0:01:43.6]} 33... Kd5 {[%clk 0:01:29.8]} 34. Nd2 {[%clk 0:01:34.9]} 34...
Be7 {[%clk 0:01:27.4]} 35. Kc3 {[%clk 0:01:34.3]} 35... b5 {[%clk 0:01:09]} 36.
axb5 {[%clk 0:01:27.2]} 36... axb5 {[%clk 0:01:09.9]} 37. f3 {[%clk 0:01:22.6]}
37... h5 {[%clk 0:01:08]} 38. e4+ {[%clk 0:01:18.1]} 38... Ke6 {[%clk
0:01:04.8]} 39. exf5+ {[%clk 0:01:13.8]} 39... Kxf5 {[%clk 0:01:05.7]} 40. Ne4
{[%clk 0:01:13.2]} 40... c6 {[%clk 0:01:02.7]} 41. Kb3 {[%clk 0:01:04.4]} 41...
Ke5 {[%clk 0:00:58.1]} 42. Kc3 {[%clk 0:01:04.7]} 42... Kd5 {[%clk 0:00:56]} 43.
Nf2 {[%clk 0:00:52.8]} 43... Bf6+ {[%clk 0:00:54.4]} 44. Kd3 {[%clk 0:00:51.6]}
44... Be5 {[%clk 0:00:54.7]} 45. Ne4 {[%clk 0:00:51.5]} 45... Ke6 {[%clk
0:00:43.1]} 46. g4 {[%clk 0:00:45.8]} 46... g6 {[%clk 0:00:35.2]} 47. Ke3 {[%clk
0:00:39.3]} 47... Bc7 {[%clk 0:00:30.6]} 48. Kd4 {[%clk 0:00:29.4]} 48... Bd8
{[%clk 0:00:26.7]} 49. gxh5 {[%clk 0:00:27.8]} 49... gxh5 {[%clk 0:00:26.5]} 50.
Ng3 {[%clk 0:00:28.5]} 50... Bxh4 {[%clk 0:00:14.7]} 51. Nxh5 {[%clk 0:00:28.5]}
51... Kd7 {[%clk 0:00:13.4]} 52. Nf4 {[%clk 0:00:26.4]} 52... Be1 {[%clk
0:00:10.8]} 53. Nd3 {[%clk 0:00:25.6]} 53... Bd2 {[%clk 0:00:11.2]} 54. Ke4
{[%clk 0:00:24.7]} 54... Ke6 {[%clk 0:00:10.5]} 55. f4 {[%clk 0:00:24.9]} 55...
Bc3 {[%clk 0:00:09.5]} 56. f5+ {[%clk 0:00:22.7]} 56... Kd6 {[%clk 0:00:10]} 57.
Kf4 {[%clk 0:00:19.2]} 57... Kd5 {[%clk 0:00:10.4]} 58. Ke3 {[%clk 0:00:19.5]}
58... Kc4 {[%clk 0:00:09.9]} 59. Ke4 {[%clk 0:00:17.4]} 59... Bf6 {[%clk
0:00:09.4]} 60. Ke3 {[%clk 0:00:17.4]} 60... Kd5 {[%clk 0:00:09.4]} 61. Kf3
{[%clk 0:00:12.8]} 61... Kd4 {[%clk 0:00:09.7]} 62. Ke2 {[%clk 0:00:11.8]} 62...
Ke4 {[%clk 0:00:09.1]} 63. Kd2 {[%clk 0:00:12]} 63... Kxf5 {[%clk 0:00:07.8]}
64. Kc2 {[%clk 0:00:12.7]} 64... Ke4 {[%clk 0:00:07.6]} 65. Nc5+ {[%clk
0:00:10.6]} 65... Kd5 {[%clk 0:00:07.8]} 66. Kb3 {[%clk 0:00:10.8]} 66... Be7
{[%clk 0:00:07.3]} 67. Nd3 {[%clk 0:00:10.3]} 67... Kd4 {[%clk 0:00:07.8]} 68.
Nf4 {[%clk 0:00:10.2]} 68... Bd6 {[%clk 0:00:07.8]} 69. Ne6+ {[%clk 0:00:10.4]}
69... Kd5 {[%clk 0:00:08.3]} 70. Ng5 {[%clk 0:00:09.8]} 70... Be5 {[%clk
0:00:07.7]} 71. Nf3 {[%clk 0:00:09.6]} 71... Bf6 {[%clk 0:00:07.8]} 72. Ne1
{[%clk 0:00:08.2]} 72... Kd4 {[%clk 0:00:08.2]} 73. Nc2+ {[%clk 0:00:08.2]}
73... Kd3 {[%clk 0:00:08.7]} 74. Na3 {[%clk 0:00:07.7]} 74... Bd4 {[%clk
0:00:09]} 75. Nc2 {[%clk 0:00:07.9]} 75... Be3 {[%clk 0:00:09.1]} 76. Na3 {[%clk
0:00:08.1]} 76... Bb6 {[%clk 0:00:09]} 77. Nc2 {[%clk 0:00:08.4]} 77... Be3
{[%clk 0:00:08.1]} 78. Na3 {[%clk 0:00:08.1]} 78... Kd2 {[%clk 0:00:08.7]} 79.
Nc2 {[%clk 0:00:08.5]} 79... Bf2 {[%clk 0:00:08.6]} 80. Na3 {[%clk 0:00:07.7]}
80... Kc1 {[%clk 0:00:09]} 81. Nc2 {[%clk 0:00:08]} 81... Kb1 {[%clk 0:00:08.7]}
82. Na3+ {[%clk 0:00:08.1]} 82... Ka1 {[%clk 0:00:08.8]} 83. Nc2+ {[%clk
0:00:08.7]} 83... Kb1 {[%clk 0:00:09.3]} 84. Na3+ {[%clk 0:00:09.3]} 84... Kc1
{[%clk 0:00:09.9]} 85. Nc2 {[%clk 0:00:09.7]} 85... Kd1 {[%clk 0:00:10.5]} 86.
Na3 {[%clk 0:00:10.3]} 86... Ke2 {[%clk 0:00:10.9]} 87. Nc2 {[%clk 0:00:10.4]}
87... Kd3 {[%clk 0:00:11.4]} 88. Na3 {[%clk 0:00:10.3]} 88... Ke4 {[%clk
0:00:11.6]} 89. Nc2 {[%clk 0:00:10.8]} 89... Kd5 {[%clk 0:00:12]} 90. Na3 {[%clk
0:00:10.8]} 90... Be3 {[%clk 0:00:12.1]} 91. Nc2 {[%clk 0:00:11.3]} 91... Bd2
{[%clk 0:00:12.3]} 92. Na3 {[%clk 0:00:11.2]} 92... Kd6 {[%clk 0:00:12.3]} 93.
Nc2 {[%clk 0:00:11.3]} 93... Kc7 {[%clk 0:00:12.7]} 94. Na3 {[%clk 0:00:11.5]}
94... Kb6 {[%clk 0:00:13.1]} 95. Nc2 {[%clk 0:00:11.6]} 95... Bf4 {[%clk
0:00:13.2]} 96. Na3 {[%clk 0:00:11.5]} 96... Bd6 {[%clk 0:00:13.8]} 97. Nc2
{[%clk 0:00:11.6]} 97... Kc7 {[%clk 0:00:14.4]} 98. Na3 {[%clk 0:00:12.2]} 98...
Kd7 {[%clk 0:00:14.8]} 99. Nc2 {[%clk 0:00:12.9]} 99... Ke6 {[%clk 0:00:14.6]}
100. Na3 {[%clk 0:00:13.1]} 100... Kd5 {[%clk 0:00:15.1]} 101. Nc2 {[%clk
0:00:13.5]} 101... Ke4 {[%clk 0:00:15.1]} 102. Na3 {[%clk 0:00:13.3]} 102... Kd3
{[%clk 0:00:15.5]} 103. Nc2 {[%clk 0:00:13.9]} 103... Be5 {[%clk 0:00:14.8]}
104. Na3 {[%clk 0:00:14]} 104... Kd2 {[%clk 0:00:15]} 105. Nc2 {[%clk
0:00:13.8]} 105... Kc1 {[%clk 0:00:15.2]} 106. Na3 {[%clk 0:00:13.6]} 106... Bf6
{[%clk 0:00:12.9]} 107. Nc2 {[%clk 0:00:13.7]} 107... Kb1 {[%clk 0:00:13.3]}
108. Na3+ {[%clk 0:00:13.9]} 108... Kc1 {[%clk 0:00:12.2]} 109. Nc2 {[%clk
0:00:14.2]} 109... Bb2 {[%clk 0:00:11]} 110. Ne3 {[%clk 0:00:13.2]} 110... Ba1
{[%clk 0:00:08.8]} 111. Nf5 {[%clk 0:00:12.8]} 111... Be5 {[%clk 0:00:05.7]}
112. Ne7 {[%clk 0:00:11.8]} 112... Bd6 {[%clk 0:00:05.7]} 113. Nxc6 {[%clk
0:00:11.8]} 113... Bxb4 {[%clk 0:00:06]} 114. Kxb4 {[%clk 0:00:10.7]} 114... Kc2
{[%clk 0:00:06.9]} 115. Kxb5 {[%clk 0:00:11.2]} 1/2-1/2

[Event "Early-Titled-Tuesday-Blitz-September-12-2023"]
[Site "Chess.com"]
[Date "2023.09.12"]
[Round "9"]
[White "BatboldNyamsuren0919"]
[Black "Eagle_2019"]
[Result "0-1"]
[WhiteElo "2516"]
[BlackElo "2695"]
[TimeControl "180+1"]
[EndTime "9:39:06 PDT"]
[Termination "Eagle_2019 won by resignation"]

1. d4 {[%clk 0:03:00.9]} 1... d5 {[%clk 0:02:59.6]} 2. c4 {[%clk 0:03:00]} 2...
e6 {[%clk 0:02:59.2]} 3. Nc3 {[%clk 0:03:00]} 3... Nf6 {[%clk 0:02:58.6]} 4.
cxd5 {[%clk 0:03:00.2]} 4... exd5 {[%clk 0:02:58.7]} 5. Bg5 {[%clk 0:03:00.6]}
5... c6 {[%clk 0:02:59.4]} 6. Qc2 {[%clk 0:03:00.6]} 6... Bd6 {[%clk 0:03:00.1]}
7. e3 {[%clk 0:03:01]} 7... O-O {[%clk 0:03:00.1]} 8. Bd3 {[%clk 0:03:01.6]}
8... h6 {[%clk 0:02:59.8]} 9. Bh4 {[%clk 0:03:01.6]} 9... Re8 {[%clk 0:03:00.4]}
10. Nge2 {[%clk 0:03:01.8]} 10... a5 {[%clk 0:03:00.6]} 11. O-O {[%clk
0:03:01.6]} 11... Bxh2+ {[%clk 0:03:00.5]} 12. Kxh2 {[%clk 0:02:41.4]} 12...
Ng4+ {[%clk 0:03:00.3]} 13. Kg3 {[%clk 0:02:41.4]} 13... g5 {[%clk 0:03:00.3]}
14. Be4 {[%clk 0:02:41.2]} 0-1

[Event "Early-Titled-Tuesday-Blitz-September-12-2023"]
[Site "Chess.com"]
[Date "2023.09.12"]
[Round "9"]
[White "Good_Knight_Kiss"]
[Black "Kapitan_Bayan"]
[Result "1-0"]
[WhiteElo "2394"]
[BlackElo "2201"]
[TimeControl "180+1"]
[EndTime "9:40:54 PDT"]
[Termination "Good_Knight_Kiss won by resignation"]

1. e4 {[%clk 0:03:00.9]} 1... c5 {[%clk 0:02:59.1]} 2. Nf3 {[%clk 0:03:00.7]}
2... d6 {[%clk 0:02:59.5]} 3. d4 {[%clk 0:03:00.3]} 3... cxd4 {[%clk 0:03:00.4]}
4. Nxd4 {[%clk 0:03:00.2]} 4... Nf6 {[%clk 0:03:01.3]} 5. Nc3 {[%clk 0:03:00.3]}
5... a6 {[%clk 0:03:01.3]} 6. h3 {[%clk 0:02:59.6]} 6... e5 {[%clk 0:03:00.9]}
7. Nde2 {[%clk 0:02:59.1]} 7... h5 {[%clk 0:03:01.4]} 8. Bg5 {[%clk 0:02:58.7]}
8... Be7 {[%clk 0:03:00.5]} 9. Bxf6 {[%clk 0:02:58.8]} 9... Bxf6 {[%clk
0:03:00.4]} 10. Nd5 {[%clk 0:02:58.9]} 10... Bg5 {[%clk 0:02:45.8]} 11. Nec3
{[%clk 0:02:56.9]} 11... Be6 {[%clk 0:02:40.9]} 12. Bc4 {[%clk 0:02:56.4]} 12...
Nd7 {[%clk 0:02:39]} 13. O-O {[%clk 0:02:55.4]} 13... b5 {[%clk 0:02:38.9]} 14.
Bb3 {[%clk 0:02:55.5]} 14... Nc5 {[%clk 0:02:36.3]} 15. a4 {[%clk 0:02:55.5]}
15... b4 {[%clk 0:02:35.7]} 16. Nxb4 {[%clk 0:02:54.3]} 16... Bxb3 {[%clk
0:02:24.6]} 17. cxb3 {[%clk 0:02:55.2]} 17... Rb8 {[%clk 0:02:20.3]} 18. Nc6
{[%clk 0:02:52.6]} 18... Qc7 {[%clk 0:02:18.3]} 19. Nxb8 {[%clk 0:02:51.4]}
19... Qxb8 {[%clk 0:02:19.2]} 20. b4 {[%clk 0:02:32.9]} 20... Qxb4 {[%clk
0:02:16.7]} 21. Qxd6 {[%clk 0:02:31.1]} 21... Be7 {[%clk 0:02:04.4]} 22. Qc6+
{[%clk 0:02:17.9]} 22... Kf8 {[%clk 0:02:03.3]} 23. Qc8+ {[%clk 0:02:13.5]} 1-0

[Event "Early-Titled-Tuesday-Blitz-September-12-2023"]
[Site "Chess.com"]
[Date "2023.09.12"]
[Round "9"]
[White "PeshkaCh"]
[Black "Mikhail_Golubev"]
[Result "1/2-1/2"]
[WhiteElo "2772"]
[BlackElo "2602"]
[TimeControl "180+1"]
[EndTime "9:41:02 PDT"]
[Termination "Game drawn by repetition"]

1. Nf3 {[%clk 0:03:00.9]} 1... d6 {[%clk 0:02:59.1]} 2. d4 {[%clk 0:03:00.8]}
2... Nf6 {[%clk 0:02:58.7]} 3. c4 {[%clk 0:03:01.5]} 3... g6 {[%clk 0:02:58.7]}
4. Nc3 {[%clk 0:03:01.6]} 4... Bg7 {[%clk 0:02:59.3]} 5. g3 {[%clk 0:03:01.6]}
5... O-O {[%clk 0:02:59]} 6. Bg2 {[%clk 0:03:02.2]} 6... Nbd7 {[%clk 0:02:59]}
7. O-O {[%clk 0:03:02.8]} 7... e5 {[%clk 0:02:59.2]} 8. b3 {[%clk 0:03:03.4]}
8... Re8 {[%clk 0:02:57.6]} 9. Bb2 {[%clk 0:03:03.6]} 9... c6 {[%clk 0:02:52.4]}
10. dxe5 {[%clk 0:03:00.7]} 10... dxe5 {[%clk 0:02:52.5]} 11. Qc2 {[%clk
0:03:00.7]} 11... Qc7 {[%clk 0:02:41.8]} 12. Rad1 {[%clk 0:02:59.5]} 12... Nc5
{[%clk 0:02:39.8]} 13. Qc1 {[%clk 0:02:49.3]} 13... e4 {[%clk 0:02:23.5]} 14.
Nd4 {[%clk 0:02:46]} 14... e3 {[%clk 0:02:23.6]} 15. f4 {[%clk 0:02:45]} 15...
Ng4 {[%clk 0:02:07.3]} 16. Nf3 {[%clk 0:01:58.9]} 16... Nf2 {[%clk 0:02:01.3]}
17. Rde1 {[%clk 0:01:59.4]} 17... Nh3+ {[%clk 0:01:59.9]} 18. Kh1 {[%clk
0:01:59.1]} 18... Nf2+ {[%clk 0:01:59.3]} 19. Kg1 {[%clk 0:01:59]} 19... Nh3+
{[%clk 0:01:59.5]} 20. Kh1 {[%clk 0:01:57.1]} 20... Nf2+ {[%clk 0:01:59.4]} 21.
Kg1 {[%clk 0:01:57.4]} 1/2-1/2

[Event "Early-Titled-Tuesday-Blitz-September-12-2023"]
[Site "Chess.com"]
[Date "2023.09.12"]
[Round "9"]
[White "schackspelaren"]
[Black "sqmorr"]
[Result "0-1"]
[WhiteElo "2254"]
[BlackElo "2176"]
[TimeControl "180+1"]
[EndTime "9:41:27 PDT"]
[Termination "sqmorr won by resignation"]

1. e4 {[%clk 0:02:52.6]} 1... c5 {[%clk 0:02:59]} 2. Nf3 {[%clk 0:02:52.6]} 2...
d6 {[%clk 0:02:58.8]} 3. d4 {[%clk 0:02:52.3]} 3... cxd4 {[%clk 0:02:58.6]} 4.
Nxd4 {[%clk 0:02:52.9]} 4... Nf6 {[%clk 0:02:58]} 5. Nc3 {[%clk 0:02:53.5]} 5...
a6 {[%clk 0:02:57.7]} 6. Rg1 {[%clk 0:02:53.5]} 6... e5 {[%clk 0:02:56.2]} 7.
Nf5 {[%clk 0:02:53]} 7... d5 {[%clk 0:02:52.4]} 8. Ng3 {[%clk 0:02:26.5]} 8...
d4 {[%clk 0:02:49.9]} 9. Nb1 {[%clk 0:02:24.6]} 9... Bb4+ {[%clk 0:02:42.3]} 10.
c3 {[%clk 0:02:22.8]} 10... Bc5 {[%clk 0:02:41.1]} 11. Be2 {[%clk 0:02:13.3]}
11... O-O {[%clk 0:02:38.7]} 12. b4 {[%clk 0:02:07.6]} 12... Bb6 {[%clk
0:02:36.1]} 13. c4 {[%clk 0:02:07.5]} 13... d3 {[%clk 0:02:24.3]} 14. c5 {[%clk
0:01:21]} 14... dxe2 {[%clk 0:02:23.1]} 15. Qxe2 {[%clk 0:01:17.3]} 15... Bc7
{[%clk 0:02:20.6]} 16. Bb2 {[%clk 0:01:16.3]} 16... Nc6 {[%clk 0:02:19.5]} 17.
Nd2 {[%clk 0:01:09]} 17... Nxb4 {[%clk 0:02:17.5]} 0-1

[Event "Early-Titled-Tuesday-Blitz-September-12-2023"]
[Site "Chess.com"]
[Date "2023.09.12"]
[Round "9"]
[White "MdImranCM"]
[Black "play1ngtheangel"]
[Result "1-0"]
[WhiteElo "2512"]
[BlackElo "2635"]
[TimeControl "180+1"]
[EndTime "9:42:11 PDT"]
[Termination "MdImranCM won by resignation"]

1. d4 {[%clk 0:03:00.9]} 1... Nf6 {[%clk 0:02:59.1]} 2. Bf4 {[%clk 0:03:00.9]}
2... e6 {[%clk 0:02:59.5]} 3. Nd2 {[%clk 0:03:01.3]} 3... d5 {[%clk 0:02:59.8]}
4. e3 {[%clk 0:03:01.7]} 4... Be7 {[%clk 0:02:59.5]} 5. Bd3 {[%clk 0:03:02.1]}
5... O-O {[%clk 0:03:00.1]} 6. Ngf3 {[%clk 0:03:02.5]} 6... Nbd7 {[%clk
0:02:58.5]} 7. h4 {[%clk 0:03:01.6]} 7... c5 {[%clk 0:02:59.4]} 8. c3 {[%clk
0:03:01.9]} 8... a5 {[%clk 0:02:57.9]} 9. Ne5 {[%clk 0:03:02]} 9... c4 {[%clk
0:02:58.2]} 10. Bc2 {[%clk 0:03:02.1]} 10... b5 {[%clk 0:02:46.2]} 11. h5 {[%clk
0:02:43.7]} 11... Nxe5 {[%clk 0:02:41.4]} 12. dxe5 {[%clk 0:02:40.5]} 12... Nd7
{[%clk 0:02:41.8]} 13. Qg4 {[%clk 0:02:39.7]} 13... Kh8 {[%clk 0:02:25]} 14. h6
{[%clk 0:02:39]} 14... g5 {[%clk 0:02:01]} 15. Nf3 {[%clk 0:02:31.3]} 15... Rg8
{[%clk 0:01:59]} 16. Bg3 {[%clk 0:02:21.5]} 16... f5 {[%clk 0:01:57]} 17. exf6
{[%clk 0:02:15.8]} 17... Bxf6 {[%clk 0:01:47.6]} 18. Qxe6 {[%clk 0:02:12.6]}
18... Nf8 {[%clk 0:01:28.6]} 19. Qf7 {[%clk 0:02:02.1]} 19... Be6 {[%clk
0:01:28.5]} 20. Ne5 {[%clk 0:02:00]} 20... Qe7 {[%clk 0:01:07.8]} 21. Qxe7
{[%clk 0:01:49.5]} 21... Bxe7 {[%clk 0:01:08.7]} 22. Nf7+ {[%clk 0:01:49.3]}
22... Bxf7 {[%clk 0:01:08.3]} 23. Be5+ {[%clk 0:01:50.2]} 1-0

[Event "Early-Titled-Tuesday-Blitz-September-12-2023"]
[Site "Chess.com"]
[Date "2023.09.12"]
[Round "9"]
[White "Byniolus"]
[Black "seramoral"]
[Result "0-1"]
[WhiteElo "2785"]
[BlackElo "2631"]
[TimeControl "180+1"]
[EndTime "9:42:19 PDT"]
[Termination "seramoral won by resignation"]

1. b4 {[%clk 0:03:00.9]} 1... e5 {[%clk 0:02:44.6]} 2. a3 {[%clk 0:03:00.7]}
2... d5 {[%clk 0:02:39.9]} 3. Bb2 {[%clk 0:03:00.5]} 3... Bd6 {[%clk 0:02:36.6]}
4. e3 {[%clk 0:03:01]} 4... Nf6 {[%clk 0:02:30.8]} 5. Nf3 {[%clk 0:03:00.6]}
5... e4 {[%clk 0:02:27.7]} 6. Nd4 {[%clk 0:03:00.9]} 6... c6 {[%clk 0:02:25.9]}
7. c4 {[%clk 0:03:00.9]} 7... O-O {[%clk 0:02:22]} 8. Be2 {[%clk 0:03:00.4]}
8... a5 {[%clk 0:02:14.9]} 9. c5 {[%clk 0:02:54.1]} 9... Be5 {[%clk 0:02:14.3]}
10. f4 {[%clk 0:02:32.2]} 10... exf3 {[%clk 0:02:11.5]} 11. gxf3 {[%clk
0:02:33.1]} 11... Ne4 {[%clk 0:02:01.5]} 12. O-O {[%clk 0:01:07.6]} 12... Qg5+
{[%clk 0:01:28.1]} 0-1